Cogmind - Beta 13 @@@ ROGUE MODE // 2024.04.14 @ 23:35:38 Player: monistgf Result: Self-destructed Performance ------------- Evolutions (7) 3500 Regions Visited (14) 2800 Robots Destroyed (172) 860 Value Destroyed (7533) 7533 Prototype IDs (20) 400 Alien Tech Used (1) 200 Bonus (1991) 1991 TOTAL SCORE: 17284 Bonus ------- High Alert Combat Kills 1162 Follower Combat Kills 924 Friendly Fire -95 Cogmind --------- Core Integrity 993/1300 Matter 104/300 Energy 94/340 System Corruption 14% Temperature Cool (30) Movement Walking (120) Location -3/Research Parts ------- > --- POWER (2) -------- Particle Reactor > --- PROPULSION (6) --- Flexi-carbon Leg Myomer Leg Myomer Leg Myomer Leg > --- UTILITY (9) ------ Advanced Heat Sink Large Storage Unit Spectral Analyzer Experimental Signal Interpreter Advanced Targeting Computer Advanced Target Analyzer Centrium Heavy Armor Plating > --- WEAPON (4) ------- Quantum Rifle HERF Cannon Hardcell Cannon > --- INVENTORY (15) --- Light Particle Reactor Myomer Leg Matter Compressor (136) Advanced Target Analyzer Recoil Nullifier Weapon Cycler Improved Phase Shifter Centrium Heavy Armor Plating Long-range Tractor Beam Transdimensional Reconstructor Powered Hammer Peak State ------------ > --- POWER ------------ Particle Reactor Particle Reactor > --- PROPULSION ------- Flexi-carbon Leg Myomer Leg Myomer Leg Myomer Leg Myomer Leg Biometal Leg > --- UTILITY ---------- Advanced Heat Sink Large Storage Unit Spectral Analyzer Experimental Signal Interpreter Advanced Targeting Computer Advanced Target Analyzer Centrium Heavy Armor Plating Advanced Force Field > --- WEAPON ----------- Quantum Rifle Advanced KE Penetrator Hardcell Cannon Hardcell Cannon > --- INVENTORY -------- Light Particle Reactor Flexi-carbon Leg Myomer Leg Matter Compressor Advanced Target Analyzer Recoil Nullifier Weapon Cycler Improved Phase Shifter Centrium Heavy Armor Plating Long-range Tractor Beam Transdimensional Reconstructor HERF Cannon Powered Hammer [Rating: 155] Favorites ----------- Power Micro Antimatter Reactor Engine F-cell Engine Power Core Fission Core Reactor Micro Antimatter Reactor Propulsion Armored Wheel Treads Armored Treads Leg Myomer Leg Wheel Armored Wheel Utility Large Storage Unit Device Advanced Sensor Array Storage Large Storage Unit Processor Improved Signal Interpreter Hackware System Shield Protection Improved Light Armor Plating Weapon Gauss Rifle Energy Gun Quantum Rifle Energy Cannon HERF Cannon Ballistic Gun Gauss Rifle Ballistic Cannon Hardcell Cannon Launcher Grenade Launcher Impact Weapon Powered Hammer Slashing Weapon Phasing Sabre Piercing Weapon Spear Build | -11 -10 -9 -8 -8 -8 -6 -6 -5 -5 -5 -5 -4 -4 -3 ------- Run | Yrd Mat Mat Mat Sto Rec Fac Ext Fac Upp Upp Zhi Pro Fac Res Slots Evolved 14 | . . 2 2 . . 4 . 2 . . . . 2 2 Power 1 | . . . . . . . . . . . . . . 1 Propulsion 4 | . . . 2 . . 1 . . . . . . . 1 Utility 7 | . . 1 . . . 2 . 2 . . . . 2 . Weapon 2 | . . 1 . . . 1 . . . . . . . . Parts Attached 195 | . 6 15 12 13 . 29 15 35 1 1 8 3 18 39 Power 10 | . . 1 . 1 . . 1 2 . . . . 1 4 Engine 2 | . . 1 . 1 . . . . . . . . . . Core 2 | . . . . . . . 1 1 . . . . . . Reactor 6 | . . . . . . . . 1 . . . . 1 4 Propulsion 45 | . 1 . 4 2 . 8 2 13 . . . . 7 8 Treads 10 | . . . 2 . . 3 1 4 . . . . . . Leg 20 | . 1 . . . . . . 5 . . . . 6 8 Wheel 15 | . . . 2 2 . 5 1 4 . . . . 1 . Hover . | . . . . . . . . . . . . . . . Flight . | . . . . . . . . . . . . . . . Utility 56 | . 1 4 1 2 . 9 4 9 . . 4 3 4 15 Device 26 | . . 1 . . . 6 2 4 . . 2 3 1 7 Storage 3 | . 1 . . 1 . . . . . . 1 . . . Processor 12 | . . 1 . . . 1 . 4 . . . . 2 4 Hackware 1 | . . . . . . . . . . . . . 1 . Protection 14 | . . 2 1 1 . 2 2 1 . . 1 . . 4 Artifact . | . . . . . . . . . . . . . . . Weapon 84 | . 4 10 7 8 . 12 8 11 1 1 4 . 6 12 Energy Gun 3 | . 1 1 . . . . . . . . . . . 1 Energy Cannon 1 | . . . . . . . . . . . . . . 1 Ballistic Gun 61 | . 3 8 7 6 . 7 4 10 1 1 4 . 4 6 Ballistic Cannon 7 | . . . . . . 1 2 . . . . . 1 3 Launcher 3 | . . 1 . . . . 2 . . . . . . . Special Weapon . | . . . . . . . . . . . . . . . Impact Weapon 7 | . . . . 2 . 3 . . . . . . 1 1 Slashing Weapon 1 | . . . . . . . . 1 . . . . . . Piercing Weapon 1 | . . . . . . 1 . . . . . . . . Special Melee Weapon . | . . . . . . . . . . . . . . . Unidentified Prototypes 8 | . . 1 . 1 . . . . . . 3 . . 3 Parts Lost 51 | . 1 1 1 . . 4 7 13 . . . . 7 17 Power 5 | . . . . . . . 1 1 . . . . 1 2 Propulsion 15 | . . . . . . 1 1 5 . . . . 2 6 Utility 14 | . . . . . . 2 3 4 . . . . 2 3 Weapon 17 | . 1 1 1 . . 1 2 3 . . . . 2 6 Highest Loss Streak 7 | . 1 1 1 . . 4 3 4 . . . . 7 7 To Critical Strikes . | . . . . . . . . . . . . . . . Average Slot Usage (%) 97 | . 84 96 99 100 100 98 95 99 100 100 79 100 98 94 Engine 3 | . 14 11 9 9 9 6 4 . . . . . . . Reactor 2 | . . . . . . . . . 5 5 5 5 5 7 Treads 7 | . . . 11 18 18 12 16 13 . . . . . . Leg 9 | . 28 22 6 . . . . 1 11 11 11 11 10 27 Wheel 12 | . . . 18 18 18 19 16 11 17 17 17 17 14 . Device 10 | . . 5 9 9 9 13 14 17 11 11 10 11 13 3 Storage 6 | . 14 11 9 9 9 6 6 5 5 5 5 5 5 4 Processor 9 | . . 3 . . . 4 1 10 23 23 19 17 15 22 Protection 5 | . . 10 9 9 9 6 6 4 . . 3 5 4 3 Ballistic Gun 21 | . 25 30 27 24 27 21 25 22 23 23 3 23 15 11 Naked Turns . | . . . . . . . . . . . . . . . Heaviest Build 126 | 13 19 33 33 46 46 57 61 59 48 49 50 52 64 126 Greatest Support 148 | 20 20 20 32 32 22 40 34 36 34 34 34 34 105 148 Greatest Overweight (x) 4 | . . 1 1 2 2 1 2 4 1 1 1 1 2 1 Average Overweight (x) 1 | . . . . 1 2 1 1 1 1 1 . 1 1 . Largest Inventory Capacity 15 | . 10 10 10 15 15 15 15 15 15 15 15 15 15 15 Average Capacity 14 | . 9 10 10 14 15 15 15 15 15 15 15 15 15 15 Most Carried 15 | . 10 10 10 15 15 15 15 15 15 15 15 15 15 15 Average Carried 13 | . 8 9 9 12 15 14 14 13 14 15 14 14 14 14 Final Capacity 15 | 8 10 10 10 15 15 15 15 15 15 15 15 15 15 15 Final Carried 15 | 6 10 10 10 15 15 15 15 15 15 15 15 15 15 12 Class Distribution -------------------- 27% | Scavenger-Skirmisher 19% | Scavenger-Gunner 16% | Tank 15% | Scavenger-Tank 5% | Scavenger-Assassin 5% | Skirmisher 4% | Mutant 3% | Commander-Tank Dominant Class ---------------- Mutant | -10/Materials Scavenger-Tank | -9/Materials Tank | -8/Materials Tank | -8/Storage Tank | -8/Recycling Scavenger-Skirmisher | -6/Factory Commander-Tank | -6/Extension Skirmisher | -5/Factory Scavenger-Gunner | -5/Upper Caves Scavenger-Gunner | -5/Upper Caves Scavenger-Mutant | -5/Zhirov Scavenger-Skirmisher | -4/Proximity Caves Scavenger-Assassin | -4/Factory Scavenger-Gunner | -3/Research Resources | -11 -10 -9 -8 -8 -8 -6 -6 -5 -5 -5 -5 -4 -4 -3 ----------- Run | Yrd Mat Mat Mat Sto Rec Fac Ext Fac Upp Upp Zhi Pro Fac Res Matter Collected 7727 | 197 200 292 560 586 57 453 1091 1280 23 31 . 175 536 2246 Remotely 209 | . . . . . . . . . . . . . . 209 Salvage Created 7981 | . 344 336 443 712 . 208 919 1702 . . . 161 585 2571 Parts 427 | . 20 30 34 44 . 20 34 101 . . . 12 30 102 Haulers Intercepted 5 | . . . 1 3 . . . . . . . . . 1 Recyclers Shooed 4 | . 1 . . . . . . 3 . . . . . . Parts Field Recycled . | . . . . . . . . . . . . . . . Retrieved Matter . | . . . . . . . . . . . . . . . Parts Self-Destructed 12 | . . . . . . . . . . . . 12 . . Prevented . | . . . . . . . . . . . . . . . Kills | -11 -10 -9 -8 -8 -8 -6 -6 -5 -5 -5 -5 -4 -4 -3 ------- Run | Yrd Mat Mat Mat Sto Rec Fac Ext Fac Upp Upp Zhi Pro Fac Res Combat Hostiles Destroyed 143 | . 14 11 10 10 . 4 20 23 . . . 5 10 36 Guns 119 | . 14 7 10 10 . 4 15 23 . . . 5 9 22 Cannons 15 | . . . . . . . . . . . . . 1 14 AOE 9 | . . 4 . . . . 5 . . . . . . . Classes Destroyed 16 | . 2 2 2 2 . 2 3 1 . . . . 1 1 Worker 6 | . . . . 1 . . . 4 . . . . . 1 Builder 6 | . . . . . . 1 . 4 . . . . . 1 Tunneler 2 | . . . . . . . . . . . . . 2 . Hauler 5 | . . . 1 3 . . . . . . . . . 1 Recycler 4 | . . . . . . . . 3 . . . . 1 . Operator 3 | . . . 2 . . . . . . . . . . 1 Watcher 3 | . . 1 . 1 . . . 1 . . . . . . Swarmer 35 | . 9 6 4 . . . 3 5 . . . 4 4 . Grunt 40 | . 5 1 3 4 . . 8 6 . . . . . 13 Brawler 3 | . . . . . . . . . . . . . . 3 Duelist 2 | . . . . . . . 1 . . . . . . 1 Protector 1 | . . . . . . . . . . . . . . 1 Sentry 24 | . . 4 3 5 . . 5 . . . . . . 7 Demolisher 1 | . . . . . . . 1 . . . . . . . Hunter 12 | . . . . 1 . 2 . 4 . . . . 3 2 Programmer 24 | . . . . . . 2 1 8 . . . 1 3 9 Savage 1 | . . . . . . . 1 . . . . . . . Best Kill Streak 14 | . 14 6 5 3 . 2 5 7 . . . 4 5 6 Combat Bots Only 14 | . 14 6 5 3 . 1 5 4 . . . 4 5 6 Max Kills in Single Turn 3 | . 1 3 1 2 . 1 2 2 . . . 2 3 2 Gunslinging 1 | . . . . . . . 1 . . . . . . . Exploded 3 | . . 3 . . . . 2 . . . . . . . Melee . | . . . . . . . . . . . . . . . Uniques/NPCs Destroyed . | . . . . . . . . . . . . . . . Combat | -11 -10 -9 -8 -8 -8 -6 -6 -5 -5 -5 -5 -4 -4 -3 -------- Run | Yrd Mat Mat Mat Sto Rec Fac Ext Fac Upp Upp Zhi Pro Fac Res Hostile Shots Fired 1055 | . 52 44 42 47 . 66 239 168 . . . 20 120 257 Missed 291 | . 11 15 13 13 . 15 83 38 . . . 7 46 50 Damage Taken 11953 | . 374 349 403 511 . 812 1565 2235 . . . 206 1193 4305 Core 1174 | . 80 40 46 78 . 40 104 252 . . . 29 198 307 Absorbed by Shields 945 | . . . . . . . . 212 . . . . . 733 Redirected to Shielding 162 | . . . . . . . . . . . . 61 101 . Ignored by Resistances 230 | . . . . . . . 230 . . . . . . . Regen/Repaired (Parts) 350 | . . . . . . 287 . 63 . . . . . . Core Remaining (%) 81 | 100 68 90 . . 77 . 83 . . . . 71 82 . Volleys Fired 426 | . 29 25 29 40 . 23 53 66 . . . 8 25 128 Largest 4 | . 2 3 3 3 . 4 4 4 . . . 4 4 4 Hottest 282 | . 70 93 75 74 . 112 112 114 . . . 124 158 282 Shots Fired 1293 | . 58 65 87 119 . 75 148 263 . . . 32 90 356 Gun 1108 | . 58 62 87 119 . 70 129 263 . . . 32 74 214 Cannon 175 | . . . . . . 5 12 . . . . . 16 142 Launcher 10 | . . 3 . . . . 7 . . . . . . . Special . | . . . . . . . . . . . . . . . Kinetic 1252 | . 49 59 87 119 . 75 141 263 . . . 32 90 337 Thermal 30 | . 9 3 . . . . . . . . . . . 18 Explosive 10 | . . 3 . . . . 7 . . . . . . . Electromagnetic 1 | . . . . . . . . . . . . . . 1 Robot Hit Streak 20 | . 6 15 12 7 . 5 15 9 . . . 4 11 20 Robot Miss Streak 6 | . 3 4 4 4 . 3 3 4 . . . 6 4 3 Penetration Max 2 | . . . . 1 . 1 1 2 . . . . 2 2 Secondary Targets 20 | . 1 . 3 . . . 5 8 . . . 2 1 . Max Gunslinging Chain 1 | . 1 . 1 . . . 1 1 . . . 1 1 . Shots Hit Robots 769 | . 34 41 52 77 . 35 90 156 . . . 14 49 221 Core Hits 360 | . 18 17 23 28 . 15 63 76 . . . 8 24 88 Critical Kills 23 | . 1 . . . . 1 . 5 . . . . 2 14 Critical Parts Destroyed 32 | . . 1 . 2 . . 1 7 . . . 3 3 15 Critical Strikes 70 | . 2 1 . 2 . 1 1 12 . . . 3 7 41 Burn 1 | . 1 . . . . . . . . . . . . . Destroy 58 | . 1 1 . 2 . 1 1 12 . . . 3 5 32 Blast 11 | . . . . . . . . . . . . . 2 9 Melee Attacks 42 | . . . . 5 . 26 . 4 . . . . 6 1 Impact 26 | . . . . 5 . 14 . . . . . . 6 1 Slashing 4 | . . . . . . . . 4 . . . . . . Piercing 12 | . . . . . . 12 . . . . . . . . Sneak Attacks 1 | . . . . 1 . . . . . . . . . . Combat Hostiles . | . . . . . . . . . . . . . . . Follow-up Attacks . | . . . . . . . . . . . . . . . Damage Inflicted 18595 | . 420 716 794 1304 . 593 2839 3245 . . . 310 1546 6828 Guns 14590 | . 419 526 794 1241 . 593 1941 3245 . . . 310 1025 4496 Cannons 2608 | . . . . . . . . . . . . . 310 2298 Explosions 1253 | . . 190 . . . . 898 . . . . . 165 . Melee 104 | . . . . 58 . . . . . . . . 46 . Ramming 40 | . 1 . . 5 . . . . . . . . . 34 Kinetic 16597 | . 370 489 794 1241 . 593 1941 3245 . . . 310 1335 6279 Thermal 970 | . 49 37 . . . . 236 . . . . . 165 483 Explosive 852 | . . 190 . . . . 662 . . . . . . . Electromagnetic 32 | . . . . . . . . . . . . . . 32 Impact 104 | . . . . 58 . . . . . . . . 46 . Slashing . | . . . . . . . . . . . . . . . Piercing . | . . . . . . . . . . . . . . . Highest Corruption 14 | . . . . . . 1 2 3 2 2 2 2 1 14 Average Corruption 2 | . . . . . . 1 1 1 2 2 2 1 1 5 Corruption Purged 6 | . . . . . . 1 . 3 . . . 2 . . Corruption Blocked . | . . . . . . . . . . . . . . . Effects 62 | . . . . . . 1 8 11 3 4 2 1 6 26 Message Errors 10 | . . . . . . . 2 1 1 . . . 1 5 Matter Fused 11 | . . . . . . . . 4 1 1 . . 2 3 Heat Flow Errors 4 | . . . . . . . 1 . . . 1 . . 2 Energy Discharges 9 | . . . . . . 1 1 2 . 1 . 1 2 1 Parts Rejected 3 | . . . . . . . . 1 . . . . . 2 Data Loss (minor) 10 | . . . . . . . 3 2 1 2 1 . . 1 Data Loss (major) 3 | . . . . . . . . 1 . . . . . 2 Misfires 3 | . . . . . . . . . . . . . . 3 Weapon Failures 9 | . . . . . . . 1 . . . . . 1 7 Overload Shots . | . . . . . . . . . . . . . . . Overflow Damage 147 | . . 2 . . . . 14 . . . . . 87 44 Projectiles 46 | . . . . . . . . . . . . . 2 44 Explosions 101 | . . 2 . . . . 14 . . . . . 85 . Melee . | . . . . . . . . . . . . . . . Knockbacks 26 | . . . . . . . . . . . . . 6 20 Impact . | . . . . . . . . . . . . . . . Kinetic 25 | . . . . . . . . . . . . . 6 19 Secondary 1 | . . . . . . . . . . . . . . 1 Self-Inflicted Damage 2 | . . . . 2 . . . . . . . . . . Shots . | . . . . . . . . . . . . . . . Rammed 1 | . . . . 1 . . . . . . . . . . Targets Rammed 5 | . 1 . . 1 . . . . . . . . . 3 Kicked 4 | . 1 . . . . . . . . . . . . 3 Crushed . | . . . . . . . . . . . . . . . Highest Temperature 408 | . 39 119 177 139 . 59 220 160 . . 230 22 50 408 Average Temperature 55 | . 22 44 47 28 . 23 44 45 . . 128 16 33 99 Received Heat Transfer 2113 | . 96 66 153 162 . . 669 136 . . . . . 831 Effects 1 | . . . . . . . . . . . . . . 1 Shutdowns 1 | . . . . . . . . . . . . . . 1 Siege Activations . | . . . . . . . . . . . . . . . Robots Corrupted . | . . . . . . . . . . . . . . . Combat Hostiles . | . . . . . . . . . . . . . . . Parts Fried . | . . . . . . . . . . . . . . . Impact Corruptions . | . . . . . . . . . . . . . . . Robots Melted . | . . . . . . . . . . . . . . . Combat Hostiles . | . . . . . . . . . . . . . . . Parts Melted 1 | . 1 . . . . . . . . . . . . . Heat Transferred 1162 | . 222 111 . . . . 100 . . . . . 100 629 Parts Sabotaged 4 | . . . . . . . . 4 . . . . . . Parts Stolen . | . . . . . . . . . . . . . . . Parts Stripped . | . . . . . . . . . . . . . . . Power Chain Reactions . | . . . . . . . . . . . . . . . Alert | -11 -10 -9 -8 -8 -8 -6 -6 -5 -5 -5 -5 -4 -4 -3 ------- Run | Yrd Mat Mat Mat Sto Rec Fac Ext Fac Upp Upp Zhi Pro Fac Res Peak Influence 965 | . 366 338 418 506 165 146 965 662 . . . . 241 913 Initial 394 | . . 154 79 137 165 69 25 394 . . . . . 126 Average 294 | . 115 235 298 333 165 43 529 469 . . . . 62 433 Maximum Alert Level 3 | . 1 1 2 2 . . 3 2 . . . . 1 3 Low Security (%) 38 | . 73 41 14 12 100 100 22 . . . . . 81 10 Level 1 30 | . 26 58 80 61 . . 6 17 . . . . 18 42 Level 2 24 | . . . 5 25 . . 33 82 . . . . . 34 Level 3 6 | . . . . . . . 36 . . . . . . 12 Level 4 . | . . . . . . . . . . . . . . . Level 5 . | . . . . . . . . . . . . . . . High Security . | . . . . . . . . . . . . . . . Max Security . | . . . . . . . . . . . . . . . Squads Dispatched 36 | . 2 . . 5 . 3 3 6 . . . . 4 13 Investigation 5 | . 1 . . 2 . . 1 . . . . . 1 . Extermination 7 | . . . . . . 2 . 2 . . . . 1 2 Reinforcement 12 | . 1 . . 3 . 1 1 2 . . . . 1 3 Assault 5 | . . . . . . . 1 2 . . . . . 2 Garrison 7 | . . . . . . . . . . . . . 1 6 Intercept . | . . . . . . . . . . . . . . . Searches Triggered . | . . . . . . . . . . . . . . . Construction Impeded 2 | . . . . . . . . 1 . . . . 1 . Haulers Reinforced 1 | . . . . . . . . . . . . . . 1 Active Scanning Responses . | . . . . . . . . . . . . . . . Cargo Convoy Interrupts . | . . . . . . . . . . . . . . . Stealth | -11 -10 -9 -8 -8 -8 -6 -6 -5 -5 -5 -5 -4 -4 -3 --------- Run | Yrd Mat Mat Mat Sto Rec Fac Ext Fac Upp Upp Zhi Pro Fac Res Distress Signals 13 | . 1 1 2 2 . . 3 3 . . . . 1 . Communications Jammed . | . . . . . . . . . . . . . . . Distress Signals . | . . . . . . . . . . . . . . . Times Spotted 232 | . 17 13 20 16 . 7 40 35 . . . 9 14 61 Peak Tracking Total 10 | . 7 4 6 5 . 2 6 6 . . . 4 5 10 Tactical Retreats 9 | . . 1 2 . . . 1 1 . . . . 1 3 Traps | -11 -10 -9 -8 -8 -8 -6 -6 -5 -5 -5 -5 -4 -4 -3 ------- Run | Yrd Mat Mat Mat Sto Rec Fac Ext Fac Upp Upp Zhi Pro Fac Res Traps Triggered 6 | . 1 . . . . 1 2 . . . . . 1 1 Indirectly . | . . . . . . . . . . . . . . . Trap Hack Attempts . | . . . . . . . . . . . . . . . Triggered . | . . . . . . . . . . . . . . . Disarmed . | . . . . . . . . . . . . . . . Reprogrammed . | . . . . . . . . . . . . . . . Reused . | . . . . . . . . . . . . . . . Traps Extracted . | . . . . . . . . . . . . . . . Installed . | . . . . . . . . . . . . . . . Triggered . | . . . . . . . . . . . . . . . Machines | -11 -10 -9 -8 -8 -8 -6 -6 -5 -5 -5 -5 -4 -4 -3 ---------- Run | Yrd Mat Mat Mat Sto Rec Fac Ext Fac Upp Upp Zhi Pro Fac Res Machines Disabled 15 | . 1 1 1 5 . . 4 . . . . . 2 1 Max in Single Turn 3 | . 1 1 1 1 . . 3 . . . . . 2 1 Energy Cycler 2 | . . . . . . . 2 . . . . . . . Machines Repaired . | . . . . . . . . . . . . . . . Machines Dismantled . | . . . . . . . . . . . . . . . Machines Sabotaged . | . . . . . . . . . . . . . . . Overloaded Fab Kills . | . . . . . . . . . . . . . . . Hacking | -11 -10 -9 -8 -8 -8 -6 -6 -5 -5 -5 -5 -4 -4 -3 --------- Run | Yrd Mat Mat Mat Sto Rec Fac Ext Fac Upp Upp Zhi Pro Fac Res Machines Accessed 27 | . 1 . 2 3 . 4 1 2 . . 6 . 5 3 Terminals 15 | . 1 . 2 3 . 3 1 1 . . . . 3 1 Fabricators 1 | . . . . . . . . . . . . . 1 . Repair Stations 4 | . . . . . . 1 . 1 . . . . 1 1 Recycling Units . | . . . . . . . . . . . . . . . Scanalyzers 1 | . . . . . . . . . . . . . . 1 Garrison Access . | . . . . . . . . . . . . . . . Total Hacks 83 | . 3 . 7 8 . 12 4 4 . . 28 . 12 5 Successful 49 | . . . 3 2 . 9 1 2 . . 28 . 3 1 Failed 34 | . 3 . 4 6 . 3 3 2 . . . . 9 4 Catastrophic 4 | . . . 1 2 . . . . . . . . 1 . Database Lockouts . | . . . . . . . . . . . . . . . Manual 16 | . 3 . 2 1 . 1 . 2 . . . . 6 1 Terminals 38 | . 3 . 7 8 . 6 4 2 . . . . 7 1 Fabricators 2 | . . . . . . . . . . . . . 2 . Repair Stations 14 | . . . . . . 6 . 2 . . . . 3 3 Recycling Units . | . . . . . . . . . . . . . . . Scanalyzers 1 | . . . . . . . . . . . . . . 1 Garrison Access . | . . . . . . . . . . . . . . . Terminal Hacks 35 | . . . 2 2 . 2 1 . . . 28 . . . Record 16 | . . . . . . . . . . . 16 . . . Part Schematic 4 | . . . . . . . . . . . 4 . . . Robot Analysis 4 | . . . . . . . . . . . 4 . . . Prototype ID Bank 5 | . . . 1 . . . . . . . 4 . . . Open Door 4 | . . . . 2 . 1 1 . . . . . . . Alert Level 1 | . . . . . . 1 . . . . . . . . Locate Traps 1 | . . . 1 . . . . . . . . . . . Fabricator Hacks . | . . . . . . . . . . . . . . . Repair Station Hacks 9 | . . . . . . 6 . 2 . . . . 1 . Scan Component 5 | . . . . . . 3 . 1 . . . . 1 . Repair 4 | . . . . . . 3 . 1 . . . . . . Recycling Unit Hacks . | . . . . . . . . . . . . . . . Scanalyzer 1 | . . . . . . . . . . . . . . 1 Insert Component 1 | . . . . . . . . . . . . . . 1 Garrison Access Hacks . | . . . . . . . . . . . . . . . Unauthorized Hacks 4 | . . . 1 . . 1 . . . . . . 2 . Terminals 4 | . . . 1 . . 1 . . . . . . 2 . Botnet 4 | . . . 1 . . 1 . . . . . . 2 . Fabricators . | . . . . . . . . . . . . . . . Repair Stations . | . . . . . . . . . . . . . . . Recycling Units . | . . . . . . . . . . . . . . . Scanalyzers . | . . . . . . . . . . . . . . . Garrison Access . | . . . . . . . . . . . . . . . Data Cores Recovered 3 | . . . 2 . . . . . . . . . . 1 Used 2 | . . . 2 . . . . . . . . . . . Hacking Detections 22 | . 1 . 2 4 . 4 1 2 . . . . 5 3 Full Trace Events 5 | . 1 . . 2 . . 1 . . . . . 1 . Feedback Events 2 | . . . . . . . 1 . . . . . 1 . Corruption 2 | . . . . . . . 1 . . . . . 1 . Feedback Blocked . | . . . . . . . . . . . . . . . Robot Schematics Acquired . | . . . . . . . . . . . . . . . Robots Built . | . . . . . . . . . . . . . . . Authchips . | . . . . . . . . . . . . . . . Time . | . . . . . . . . . . . . . . . Total Robot Build Rating . | . . . . . . . . . . . . . . . Part Schematics Acquired 4 | . . . . . . . . . . . 4 . . . Parts Built . | . . . . . . . . . . . . . . . Authchips . | . . . . . . . . . . . . . . . Time . | . . . . . . . . . . . . . . . Total Part Build Rating . | . . . . . . . . . . . . . . . Parts Repaired 4 | . . . . . . 3 . 1 . . . . . . Time 136 | . . . . . . 120 . 16 . . . . . . Parts Recycled . | . . . . . . . . . . . . . . . Recycled Matter . | . . . . . . . . . . . . . . . Retrieved Matter . | . . . . . . . . . . . . . . . Retrieved Components . | . . . . . . . . . . . . . . . Parts Scanalyzed . | . . . . . . . . . . . . . . . Part Schematics Acquired . | . . . . . . . . . . . . . . . Parts Damaged . | . . . . . . . . . . . . . . . Bothacking | -11 -10 -9 -8 -8 -8 -6 -6 -5 -5 -5 -5 -4 -4 -3 ------------ Run | Yrd Mat Mat Mat Sto Rec Fac Ext Fac Upp Upp Zhi Pro Fac Res Used RIF Installer . | . . . . . . . . . . . . . . . Robots Hacked . | . . . . . . . . . . . . . . . Non-combat . | . . . . . . . . . . . . . . . Combat . | . . . . . . . . . . . . . . . Robot Hacks Applied . | . . . . . . . . . . . . . . . Relay Couplers Released 4 | . . . . . . . . 4 . . . . . . Programmers 4 | . . . . . . . . 4 . . . . . . Fabnet Peak Effective % . | . . . . . . . . . . . . . . . Robots Rewired 22 | . . . . . . . 22 . . . . . . . Allies Hacked . | . . . . . . . . . . . . . . . Hacks Repelled . | . . . . . . . . . . . . . . . Allies | -11 -10 -9 -8 -8 -8 -6 -6 -5 -5 -5 -5 -4 -4 -3 -------- Run | Yrd Mat Mat Mat Sto Rec Fac Ext Fac Upp Upp Zhi Pro Fac Res Total Allies 23 | . . . . . . . 23 . . . . . . . Largest Group 11 | . . . . . . . 11 . . . . . . . Highest-Rated Group 310 | . . . . . . . 310 . . . . . . . Highest-Rated Ally 39 | . . . . . . . 39 . . . . . . . Total Orders 1 | . . . . . . . . . . . . 1 . . EXPLORE 1 | . . . . . . . . . . . . 1 . . Ally Attacks 132 | . . . . . . . 132 . . . . . . . Total Damage 2514 | . . . . . . . 2514 . . . . . . . Kills 31 | . . . . . . . 31 . . . . . . . Allies Corrupted 1 | . . . . . . . 1 . . . . . . . Allies Melted . | . . . . . . . . . . . . . . . Intel | -11 -10 -9 -8 -8 -8 -6 -6 -5 -5 -5 -5 -4 -4 -3 ------- Run | Yrd Mat Mat Mat Sto Rec Fac Ext Fac Upp Upp Zhi Pro Fac Res Robot Analysis Total 4 | . . . . . . . . . . . 4 . . . Derelict Logs Recovered 5 | . . . . . . . . . 1 2 . 2 . . Drone Launches 3 | . . . . . . . . . . . . 3 . . Drone Recoveries . | . . . . . . . . . . . . . . . Exploration | -11 -10 -9 -8 -8 -8 -6 -6 -5 -5 -5 -5 -4 -4 -3 ------------- Run | Yrd Mat Mat Mat Sto Rec Fac Ext Fac Upp Upp Zhi Pro Fac Res Turns Passed 9720 | . 257 863 701 589 129 1177 934 1292 302 290 165 851 971 1199 Spaces Moved 5573 | 1 115 371 433 326 112 774 468 516 294 283 167 524 642 547 Core . | . . . . . . . . . . . . . . . Treads . | . . . . . . . . . . . . . . . Legs 1055 | 1 115 371 2 . . . . . . . . . 19 547 Wheels 4518 | . . . 431 326 112 774 468 516 294 283 167 524 623 . Hover . | . . . . . . . . . . . . . . . Flight . | . . . . . . . . . . . . . . . Fastest Speed 86 | 120 120 120 100 100 115 101 101 101 101 101 86 101 98 118 Average Speed 113 | 120 120 187 113 112 115 105 108 116 101 101 87 101 105 118 Slowest Speed 190 | 120 120 190 190 115 115 108 120 150 101 101 101 101 120 190 Overloaded Moves . | . . . . . . . . . . . . . . . Propulsion Burnouts . | . . . . . . . . . . . . . . . Robots Hopped . | . . . . . . . . . . . . . . . Cave-ins Triggered . | . . . . . . . . . . . . . . . Exploration Rate (%) 36 | 1 25 36 44 59 34 17 59 12 43 62 63 58 16 17 Regions Visited 14 Branch Regions 7 Pre-discovered Areas 7 | . . . . 1 . . . . . 2 3 1 . . Known Exits Taken 7 | . . . . . . 1 . 1 1 1 1 1 1 . Unknown Exits Taken 7 | 1 1 1 1 1 1 . 1 . . . . . . . Scrap Searched 5 | . . . . . . . . . 1 3 . 1 . . Spaces Dug 50 | . . . . 2 . 21 3 4 . . . . 5 15 Terrain Destroyed 261 | . . 15 . 3 . 23 73 5 . . . 1 43 98 Melee 29 | . . . . 2 . 17 . 4 . . . . 5 1 Projectile 132 | . . . . 1 . 6 14 . . . . 1 14 96 AOE 96 | . . 15 . . . . 59 . . . . . 22 . Terrain Rammed . | . . . . . . . . . . . . . . . Walls Destroyed . | . . . . . . . . . . . . . . . Machines Disabled . | . . . . . . . . . . . . . . . Actions | -11 -10 -9 -8 -8 -8 -6 -6 -5 -5 -5 -5 -4 -4 -3 --------- Run | Yrd Mat Mat Mat Sto Rec Fac Ext Fac Upp Upp Zhi Pro Fac Res Total 8090 | . 175 496 593 459 112 1043 789 1076 301 288 185 829 878 866 Wait 1460 | . 19 62 98 49 1 164 51 437 2 2 . 292 171 112 Move 5559 | . 114 370 432 325 111 773 467 515 293 282 166 523 641 547 Hop . | . . . . . . . . . . . . . . . Pick Up 83 | . 2 8 8 11 . 10 9 11 2 1 1 1 8 11 Fast Attach 63 | . 3 7 3 1 . 10 4 9 . . 9 1 5 11 Attach 48 | . 1 1 3 . . 6 4 12 . . . 1 6 14 Detach 19 | . 3 2 . 1 . 2 . . . . 1 . 1 9 Swap 85 | . 2 7 6 12 . 13 7 14 1 1 . 1 7 14 Drop 113 | . 1 14 14 14 . 16 7 8 3 2 8 2 8 16 Fire 426 | . 29 25 29 40 . 23 53 66 . . . 8 25 128 Melee 42 | . . . . 5 . 26 . 4 . . . . 6 1 Ram 1 | . . . . 1 . . . . . . . . . . Kick 4 | . 1 . . . . . . . . . . . . 3 Crush . | . . . . . . . . . . . . . . . Escape Stasis 16 | . . . . . . . 16 . . . . . . . Rewire 171 | . . . . . . . 171 . . . . . . . Trap . | . . . . . . . . . . . . . . . Miscellaneous . | . . . . . . . . . . . . . . . Route ------- -11/Scrapyard -10/Materials -9/Materials -8/Materials -8/Storage -8/Recycling -6/Factory -6/Extension (discovered 2 exits: *Fac / [*Cet]) -5/Factory -5/Upper Caves -5/Upper Caves -5/Zhirov -4/Proximity Caves -4/Factory -3/Research History --------- Turn | Location | Event 1 | -11/Scrapyard | Discovered new exit (range 0) 1 | -11/Scrapyard | Entered Materials 162 | -10/Materials | Discovered new exit (range 13) 258 | -10/Materials | Entered another Materials area 258 | -9/Materials | Evolved 2 slots: Utility x1, Weapon x1 260 | -9/Materials | Destroyed 14 combat bots 1019 | -9/Materials | Discovered new exit (range 16) 1121 | -9/Materials | Entered another Materials area 1121 | -8/Materials | Evolved 2 slots: Propulsion x2 1166 | -8/Materials | Build established: Scavenger-Tank 1532 | -8/Materials | Build established: Tank 1811 | -8/Materials | Discovered new exit (range 10) 1822 | -8/Materials | Entered Storage 2193 | -8/Storage | Learned location of Armory (-3) 2406 | -8/Storage | Used back door to open Recycling access 2406 | -8/Storage | Discovered new exit (range 5) 2411 | -8/Storage | Entered Recycling 2513 | -8/Recycling | Discovered new exit (range 14) 2540 | -8/Recycling | Entered Factory 2540 | -6/Factory | Evolved 4 slots: Propulsion x1, Utility x2, Weapon x1 2642 | -6/Factory | Lost 4 parts (1n2u1w) 3116 | -6/Factory | Build established: Scavenger-Skirmisher 3511 | -6/Factory | Repaired Arm. Wheel 3550 | -6/Factory | Repaired Arm. Treads 3602 | -6/Factory | Repaired Phase Shifter 3713 | -6/Factory | Discovered new exit (range 6) 3716 | -6/Factory | Identified exit to Extension 3717 | -6/Factory | Entered Extension 3809 | -6/Extension | Rescued a captive Derelict 3861 | -6/Extension | Energy Cycler disabled 3861 | -6/Extension | Rescued a captive Derelict 3861 | -6/Extension | Rescued a captive Derelict 3861 | -6/Extension | Rescued a captive Derelict 3862 | -6/Extension | Rescued a captive Derelict 3863 | -6/Extension | Rescued a captive Derelict 4156 | -6/Extension | Lost 6 allies 4250 | -6/Extension | Lost 3 parts (1n2u) 4417 | -6/Extension | First assault squad dispatched 4549 | -6/Extension | Lost 10 allies 4615 | -6/Extension | Discovered new exit (range 10) 4617 | -6/Extension | Discovered new exit (range 6) 4651 | -6/Extension | Entered Factory 4651 | -5/Factory | Evolved 2 slots: Utility x2 5045 | -5/Factory | Lost 4 parts (1n1u2w) 5070 | -5/Factory | Repaired Arm. Wheel 5301 | -5/Factory | Build established: Skirmisher 5424 | -5/Factory | Spotted B-75 Beast 5520 | -5/Factory | Discovered new exit (range 10) 5531 | -5/Factory | Identified exit to Upper Caves 5551 | -5/Factory | First assault squad dispatched 5715 | -5/Factory | Lost 4 parts (1p2n1u) 5740 | -5/Factory | Build established: Scavenger-Skirmisher 5860 | -5/Factory | Lost 4 parts (2n1u1w) 5943 | -5/Factory | Entered Upper Caves 6160 | -5/Upper Caves | Build established: Scavenger-Gunner 6194 | -5/Upper Caves | Learned 8 Factory zone layouts 6234 | -5/Upper Caves | Discovered new exit (range 12) 6244 | -5/Upper Caves | Identified exit to Upper Caves 6245 | -5/Upper Caves | Entered another Upper Caves area 6390 | -5/Upper Caves | Learned location of Warlord (-4) 6525 | -5/Upper Caves | Discovered new exit (range 8) 6534 | -5/Upper Caves | Identified exit to Zhirov 6535 | -5/Upper Caves | Entered Zhirov 6535 | -5/Zhirov | Discovered new exit (range 3) 6614 | -5/Zhirov | Found Alien Artifact 6614 | -5/Zhirov | Identified Integrated Dissipator 6614 | -5/Zhirov | Installed Integrated Dissipator, increased core heat dissipation (+20) 6629 | -5/Zhirov | Found Alien Artifact 6648 | -5/Zhirov | Learned location of Quarantine (-2) 6648 | -5/Zhirov | Learned location of Testing (-3) 6648 | -5/Zhirov | Learned location of Command (-1) 6699 | -5/Zhirov | Identified exit to Proximity Caves 6700 | -5/Zhirov | Entered Proximity Caves 6950 | -4/Proximity Caves | Learned Research terminal intel 6977 | -4/Proximity Caves | Received a Behemoth hack from an annoying Tinkerer 6985 | -4/Proximity Caves | Build established: Scavenger-Skirmisher 7513 | -4/Proximity Caves | Discovered new exit (range 10) 7521 | -4/Proximity Caves | Identified exit to Factory 7551 | -4/Proximity Caves | Entered Factory 7551 | -4/Factory | Evolved 2 slots: Utility x2 7959 | -4/Factory | Build established: Scavenger-Assassin 8268 | -4/Factory | Discovered new exit (range 16) 8291 | -4/Factory | Identified exit to Research 8437 | -4/Factory | Garrison activated, responded to threat 8519 | -4/Factory | Lost 7 parts (1p2n2u2w) 8522 | -4/Factory | Entered Research 8522 | -3/Research | Evolved 2 slots: Power x1, Propulsion x1 8523 | -3/Research | Loaded intel: 22 terminal locations 8579 | -3/Research | Found Prototype Processor 8579 | -3/Research | Identified Spectral Analyzer 8649 | -3/Research | Garrison activated, responded to threat 8685 | -3/Research | Spotted B-86 Titan 8755 | -3/Research | Build established: Scavenger-Gunner 8800 | -3/Research | Found Prototype Protection 8800 | -3/Research | Identified Centrium Heavy Armor Plating 8805 | -3/Research | Found Centrium Heavy Armor Plating 9212 | -3/Research | Garrison activated, responded to threat 9272 | -3/Research | First assault squad dispatched 9352 | -3/Research | Found Centrium Heavy Armor Plating 9357 | -3/Research | Found Prototype Processor 9357 | -3/Research | Identified Exp. Signal Interpreter 9461 | -3/Research | System corruption reached 10% 9503 | -3/Research | Lost 5 parts (1p2u2w) 9704 | -3/Research | Assembled infested ambush trap array 9721 | -3/Research | Self-destructed Last Messages --------------- 09710_ E-15 Imp destroyed. 09710_ U-05 Engineer lays Concrete. 09714_ Hardcell Cannon destroyed. 09714_ U-05 Engineer lays Concrete. 09716_ Adv. Force Field destroyed. 09716_ as-87884 destroyed. 09716_ Myomer Leg destroyed. 09717_ Slug penetrates D-63 Destroyer. 09717_ U-05 Engineer lays Concrete. 09718_ Particle Reactor destroyed. 09718_ U-05 Engineer lays Concrete. 09718_ Adv. KE Penetrator destroyed. 09719_ U-05 Engineer lays Concrete. 09719_ Penetrated by Slug. 09720_ U-05 Engineer lays Concrete. 09720_ C-30 ARC bursts open, deploying its payload. 09720_ S-43 Plague unfolds itself. 09721_ Flexi-carbon Leg destroyed. 09721_ U-05 Engineer lays Concrete. Map ----- +----------------------------------------------------+ | ################"+###########???????????????????? | | ???????????????#%%% #???????????????????? | | ###############[= #???????????????????? | | %+![ #???????????????????? | | *# =% #???????????????????? | | %%"! =! #???????????????????? | | % %# =! #???????????????????? | | ##### ######+#######/############????????????????? | | ??????# ??# ## #????????????????? | | ??????# ??# ##= #????????????????? | | ??????# ??#g## #????????????????? | | ??????# ?#g## #????????????????? | | ??????# ?# ##+##+##+###????????????????? | | ??????# # eg #??????????????????? | | ??????# ] ! # %%b ! #??????????????????? | | ???????? # %* #??????????????????? | | ?????????? === #???????#??????????? | | ???????????? u u= #???? #??????????? | | ?????????????? s ### #??????????? | | ???????????????? Y / ????????? | | ?????????????????# ### #??????????? | | ?????????????????# #???? #??????????? | | ?????????????????# #??????##??????????? | | ??????????????# # #??????????????????? | | ??????????????????# d ####???????????????? | | ??????????????????# @ #???????????????? | | ?????????????????# #???????????????? | | ?????????????????###% #???????????????? | | ????????????????? %sd #???????????????? | | ???????????????# s # # #???????????????? | | ???????????????# sss ####### ] #???????????????? | | ???????????????+ #??????#####???????????????? | | ???????????????# #??????????????????????????? | | ???????????????# #??????????????????????????? | | ?????????????? #??????????????????????????? | | ?????????????##### #??????????????????????????? | | ?????????????????# #??????????????????????????? | | ?????????????????# #??????????????????????????? | | ?????????????????# +??????????????????????????? | | ?????????????????# ???????????????????????????? | | ?????????????????# ???????????????????????????? | | ?????????????????# ???????????????????????????? | | ?????????????????# ???????????????????????????? | | ?????????????????# ???????????????????????????? | | ?????????????????# ???????????????????????????? | | ?????????????????????????????????????????????????? | | ?????????????????????????????????????????????????? | | ?????????????????????????????????????????????????? | | ?????????????????????????????????????????????????? | | ?????????????????????????????????????????????????? | +----------------------------------------------------+ Best States ------------- Heat Dissipation 85 Energy Generation 41 Energy Capacity 580 Matter Stores 300 Matter Capacity 300 Sight Range 24 Robot Scan Range 16 Terrain Scan Density 10 Armor Coverage 600 Resistance: TH 20 Propulsion Shielding 90 Weapon Cycling 15 Phase Shifting 10 Evasion (%) 65 Targeting Accuracy 16 Target Analysis 8 Recoil Reduction 6 Defensive Hacking 10 Item Schematics ----------------- Assault Drone Bay | -5/Zhirov | Free Exp. Heat Sink | -5/Zhirov | Free Exp. Optical Array | -5/Zhirov | Free Imp. Arc Thrower | -5/Zhirov | Free Robot Schematics ------------------ None Fabricated ------------ Nothing Alien Tech Used ----------------- Integrated Dissipator Achievements -------------- None Challenges ------------ None Game ------ Seed HeatMinesnifferAccelerator Manual? 0 Play Time 01:30:43 Cumulative 234.5 hours Start 2024.03.29 @ 20:15:20 End 2024.04.14 @ 23:35:38 Sessions 7 Manual Loads 0 Difficulty Rogue Special Mode None Game No. 145 Rogue 145 Adventurer 0 Explorer 0 Win Type - Total 2 Types 2/0/0/0/0/0/0/0/0 Lore% 50 Gallery% 69 Achievement% 57 Wizard Run 0 Options --------- Layout 1 ASCII 0 Keyboard 1 Movement Numpad Keybinds 0 Fullscreen 1 Font 32/SmallcapsGlow Map View 50x35 Zoom Use 0% Tactical HUD 1 Map Filters NONE Filters NONE Steam 1 RUN: 6589f6fd-3909-4c15-b1db-64ed0e1e63c4